bitfinex/quotes_BTCUSD_20241216
["timestamp","ask_amount","ask_price","bid_price","bid_amount"]
[1734309494509,0.376948,106120.0,106090.0,0.37701]
[1734309494723,0.376948,106120.0,106100.0,0.188501]
[1734309495143,0.188468,106120.0,106100.0,0.188501]
[1734309495350,0.20333236,106130.0,106100.0,0.377002]
[1734309495560,0.01488036,106130.0,106120.0,0.188465]
[1734309495770,0.00281576,106130.0,106120.0,0.188465]
[1734309496595,0.188396,106160.0,106130.0,0.376877]
[1734309496841,0.38897121,106160.0,106130.0,0.18843]
[1734309497054,0.188413,106150.0,106130.0,0.18843]
[1734309497262,0.01233304,106160.0,106140.0,0.188414]
[1734309497484,0.01510996,106160.0,106140.0,0.376831]
[1734309497696,0.20350496,106160.0,106140.0,0.188414]
[1734309497917,0.19133975,106160.0,106130.0,0.188435]
[1734309498148,0.188412,106150.0,106110.0,0.188469]
[1734309498377,0.00294475,106160.0,106130.0,0.188448]
[1734309498604,0.00294475,106160.0,106120.0,0.188465]
[1734309498823,0.19133975,106160.0,106130.0,0.376867]
[1734309499052,0.19133975,106160.0,106140.0,0.188428]
[1734309499257,0.00294475,106160.0,106130.0,0.188431]
[1734309499461,0.19133975,106160.0,106140.0,0.188427]
[1734309499664,0.37975175,106160.0,106130.0,0.376878]
[1734309499896,0.19133975,106160.0,106130.0,0.376864]
[1734309500141,0.19133975,106160.0,106140.0,0.188427]
[1734309500381,0.00294475,106160.0,106140.0,0.188427]
[1734309500603,0.01511684,106160.0,106120.0,0.1885374]
[1734309500813,0.188426,106150.0,106120.0,8.64e-05]
[1734309501035,0.376873,106140.0,106120.0,8.64e-05]
[1734309501242,0.19135175,106160.0,106140.0,0.188428]
[1734309501473,0.00294475,106160.0,106140.0,0.188428]
[1734309501686,0.19134075,106160.0,106140.0,0.188428]
[1734309501890,0.37975175,106160.0,106140.0,0.18843]
[1734309502102,0.19134075,106160.0,106140.0,0.18343]
[1734309502332,0.37975175,106160.0,106130.0,0.37688]
[1734309502750,0.37974875,106160.0,106130.0,0.37688]
[1734309502942,0.19134075,106160.0,106130.0,0.37688]
[1734309503191,0.37974875,106160.0,106130.0,0.37688]
[1734309504085,0.188435,106140.0,106120.0,0.1885344]
[1734309504303,0.376881,106140.0,106120.0,8.64e-05]
[1734309504515,0.188435,106140.0,106120.0,8.64e-05]
[1734309504736,0.188448,106130.0,106120.0,8.64e-05]
[1734309507088,0.00294475,106160.0,106130.0,0.188448]
[1734309507265,0.00294475,106160.0,106140.0,0.188418]
[1734309507468,0.37975075,106160.0,106130.0,0.188435]
[1734309507670,0.19134175,106160.0,106130.0,0.188435]
[1734309507871,0.376826,106150.0,106130.0,0.188435]
[1734309508078,0.188413,106150.0,106130.0,0.188435]
[1734309508280,0.188413,106150.0,106130.0,0.376883]
[1734309508490,0.01495601,106160.0,106120.0,0.0794864]
[1734309508695,0.20336201,106160.0,106130.0,0.188436]
[1734309508902,0.00016783,106160.0,106150.0,0.188412]
[1734309509731,0.0028803,106190.0,106170.0,0.376737]
[1734309510560,0.270118,106210.0,106180.0,0.376707]
[1734309510561,0.37664,106210.0,106180.0,0.376707]
[1734309510776,0.37944454,106200.0,106170.0,0.188363]
[1734309510981,0.188341,106190.0,106150.0,0.18857983]
[1734309511210,0.00278254,106200.0,106150.0,0.37697883]
[1734309511211,0.188369,106180.0,106150.0,0.37697883]
[1734309511457,0.376739,106180.0,106150.0,0.37696583]
[1734309511660,0.376739,106180.0,106160.0,0.188394]
[1734309512085,0.376739,106180.0,106150.0,0.37696783]
[1734309512086,0.376739,106180.0,106150.0,0.56536683]
[1734309512708,0.376739,106180.0,106160.0,0.188394]
[1734309512913,0.376706,106190.0,106160.0,0.188394]
[1734309513143,0.18836,106180.0,106160.0,0.376778]
[1734309513551,0.18836,106180.0,106160.0,0.188384]
[1734309514128,0.376706,106190.0,106160.0,0.376778]
[1734309514464,0.376721,106180.0,106160.0,0.188384]
[1734309514662,0.376721,106180.0,106150.0,0.17696483]
[1734309514871,0.18836,106180.0,106150.0,0.17696483]
[1734309515108,0.376732,106180.0,106150.0,0.36536583]
[1734309515306,0.188377,106170.0,106140.0,0.188419]
[1734309515726,0.376808,106160.0,106130.0,0.1885204]
[1734309515923,0.188412,106150.0,106130.0,0.19146333]
[1734309516130,0.23723446,106180.0,106130.0,0.15977323]
[1734309516341,0.23723446,106180.0,106160.0,0.376775]
[1734309516342,0.00016846,106180.0,106160.0,0.376775]
[1734309516539,0.00016846,106180.0,106170.0,0.188377]
[1734309516961,0.00016846,106180.0,106160.0,0.376766]
[1734309517364,0.00016846,106180.0,106170.0,0.188377]
[1734309521364,0.00034146,106180.0,106170.0,0.188377]
[1734309521741,0.00034146,106180.0,106160.0,0.376766]
[1734309522169,0.00034146,106180.0,106160.0,0.565148]
[1734309522731,0.00034146,106180.0,106160.0,0.376764]
[1734309522889,0.18871146,106180.0,106150.0,0.3768975]
[1734309523093,0.18871146,106180.0,106150.0,0.1884875]
[1734309523292,0.37708346,106180.0,106150.0,0.3768895]
[1734309523496,0.188379,106170.0,106150.0,0.1884875]
[1734309523926,0.37708346,106180.0,106150.0,0.1884875]
[1734309524133,0.188377,106170.0,106150.0,0.1884875]
[1734309524754,0.188377,106170.0,106150.0,0.3768995]
[1734309524960,0.37708346,106180.0,106160.0,0.188394]
[1734309525169,0.37708346,106180.0,106170.0,0.188377]
[1734309525170,0.00034146,106180.0,106170.0,0.188377]
[1734309525958,0.00034146,106180.0,106160.0,0.376777]
[1734309526360,0.00034146,106180.0,106160.0,0.188383]
[1734309526578,0.00034146,106180.0,106160.0,0.376763]
[1734309526785,0.00034146,106180.0,106170.0,0.188377]
[1734309528235,0.00034146,106180.0,106170.0,0.3451209]
[1734309528442,0.188289,106220.0,106190.0,0.188341]
[1734309528647,0.188289,106220.0,106200.0,0.376642]
[1734309528648,0.18885051,106220.0,106200.0,0.376642]
[1734309528854,0.37714851,106220.0,106200.0,0.188319]
[1734309529062,0.188306,106210.0,106190.0,0.37667]
[1734309529689,0.376622,106210.0,106190.0,0.188329]
[1734309530366,0.188306,106210.0,106190.0,0.188329]
[1734309530776,0.188306,106210.0,106180.0,0.188345]
[1734309530777,0.188323,106200.0,106180.0,0.188345]
[1734309530984,0.376657,106200.0,106170.0,0.376736]
[1734309531191,0.376657,106200.0,106170.0,0.565099]
[1734309531397,0.564993,106200.0,106180.0,0.188359]
[1734309531621,0.564993,106200.0,106170.0,0.565094]
[1734309531826,0.188323,106200.0,106170.0,0.376728]
[1734309532043,0.188323,106200.0,106170.0,0.188363]
[1734309532044,0.188351,106190.0,106170.0,0.188363]
[1734309532265,0.376704,106190.0,106160.0,0.376762]
[1734309532468,0.188351,106190.0,106160.0,0.376762]
[1734309532673,0.376703,106190.0,106160.0,0.376762]
[1734309532875,0.188359,106180.0,106160.0,0.376762]
[1734309533097,0.188359,106180.0,106150.0,0.5652945]
[1734309533098,0.376729,106180.0,106150.0,0.5652945]
[1734309533326,0.188387,106170.0,106150.0,8.65e-05]
[1734309533513,0.188394,106160.0,106150.0,8.65e-05]
[1734309534175,0.188394,106160.0,106150.0,0.00025496]
[1734309534947,0.188359,106180.0,106160.0,0.188394]
[1734309535149,0.20022394,106180.0,106160.0,0.188394]
[1734309535562,0.01186494,106180.0,106160.0,0.376773]
[1734309535767,0.502506,106190.0,106170.0,0.188377]
[1734309535962,0.376706,106190.0,106170.0,0.188377]
[1734309536364,0.565061,106190.0,106160.0,0.565157]
[1734309536579,0.188359,106180.0,106160.0,0.376763]
[1734309537290,0.188359,106180.0,106160.0,0.37970535]
[1734309537898,0.38868702,106190.0,106160.0,0.37970535]
[1734309538155,0.188359,106180.0,106160.0,0.37970535]
[1734309538362,0.188359,106180.0,106160.0,0.19132135]
[1734309538535,0.376729,106180.0,106160.0,0.00294235]
[1734309538690,0.565104,106180.0,106160.0,0.00294235]
[1734309538892,0.188377,106170.0,106150.0,0.19159731]
[1734309539322,0.376754,106170.0,106150.0,0.19159731]
[1734309539496,0.376754,106170.0,106150.0,0.00319731]
[1734309539846,0.188394,106160.0,106150.0,0.00319731]
[1734309540587,0.188394,106160.0,106150.0,0.00025496]
[1734309541376,0.188377,106170.0,106150.0,0.00025496]
[1734309541582,0.188377,106170.0,106150.0,0.18866596]
[1734309542007,0.188377,106170.0,106150.0,0.19160864]
[1734309542186,0.188377,106170.0,106150.0,0.18866596]
[1734309543161,0.425843,106180.0,106150.0,0.37706496]
[1734309543162,0.18837,106180.0,106150.0,0.37706496]
[1734309543352,0.39155402,106190.0,106160.0,0.188392]
[1734309543653,0.39155402,106190.0,106170.0,0.188377]
[1734309543654,0.20320202,106190.0,106170.0,0.188377]
[1734309543870,0.01486002,106190.0,106170.0,0.188377]
[1734309544049,0.01486002,106190.0,106170.0,0.188362]
[1734309544362,0.002877,106190.0,106170.0,0.376727]
[1734309544979,0.002877,106190.0,106170.0,0.565092]
[1734309545774,0.002877,106190.0,106180.0,0.188359]
[1734309546674,0.376671,106200.0,106190.0,0.188341]
[1734309546675,0.01146203,106200.0,106190.0,0.188341]
[1734309546835,0.0001728,106210.0,106190.0,0.188341]
[1734309547042,0.0001728,106210.0,106200.0,0.188323]
[1734309547260,0.1884798,106210.0,106190.0,0.188327]
[1734309547505,0.3768018,106210.0,106180.0,0.376691]
[1734309547703,0.188323,106200.0,106180.0,0.376691]
[1734309548484,0.38891841,106210.0,106180.0,0.565038]
[1734309548708,0.57723841,106210.0,106180.0,0.565038]
[1734309548916,0.188326,106200.0,106180.0,0.376691]
[1734309549361,0.38891841,106210.0,106180.0,0.376691]
[1734309549540,0.38891841,106210.0,106190.0,0.188341]
[1734309549761,0.01229341,106210.0,106190.0,0.376668]
[1734309549918,0.01139341,106210.0,106200.0,0.188323]
[1734309550136,0.19109291,106220.0,106200.0,0.376646]
[1734309550311,0.19126126,106220.0,106200.0,0.376646]
[1734309550822,0.00297226,106220.0,106200.0,0.564958]
[1734309551023,0.00297226,106220.0,106210.0,0.188306]
[1734309551160,0.3864207,106230.0,106200.0,0.564938]
[1734309551410,0.188288,106220.0,106200.0,0.18887351]
[1734309551642,0.376586,106220.0,106200.0,0.18887351]
[1734309551875,0.376586,106220.0,106200.0,0.37719551]
[1734309551876,0.188288,106220.0,106200.0,0.37719551]
[1734309553011,0.0817,106240.0,106200.0,0.37719551]
[1734309553420,0.188298,106220.0,106200.0,0.37719551]
[1734309554017,0.188298,106220.0,106200.0,0.18888351]
[1734309554222,0.188283,106230.0,106210.0,0.188304]
[1734309554434,0.376566,106230.0,106210.0,0.188304]
[1734309554596,0.376566,106230.0,106200.0,0.37719451]
[1734309554790,0.564851,106230.0,106200.0,0.37719451]
[1734309555469,0.56485,106230.0,106200.0,0.37719451]
[1734309555827,0.188288,106220.0,106200.0,0.37719451]
[1734309556043,0.09340289,106240.0,106200.0,0.00056151]
[1734309556248,0.01170289,106240.0,106220.0,0.188278]
[1734309556449,0.00282791,106230.0,106220.0,0.376556]
[1734309556620,0.00282791,106230.0,106220.0,0.188278]
[1734309557050,0.00300071,106230.0,106220.0,0.188278]
[1734309557679,0.00300071,106230.0,106210.0,0.37658]
[1734309557849,0.00300071,106230.0,106210.0,0.188292]
[1734309558052,0.00300071,106230.0,106210.0,0.376583]
[1734309558253,0.00290071,106230.0,106210.0,0.564878]
[1734309558707,0.00290071,106230.0,106220.0,0.188288]
[1734309558923,0.19117071,106230.0,106200.0,0.18887351]
[1734309559228,0.138,106210.0,106200.0,0.00056151]
[1734309559348,0.326306,106210.0,106200.0,0.00056151]
[1734309559551,0.138,106210.0,106200.0,0.00056151]
[1734309559757,0.138,106210.0,106200.0,0.18888451]
[1734309560364,0.01151686,106250.0,106240.0,0.05]
[1734309560658,0.21080658,106270.0,106260.0,0.188217]
[1734309560659,0.000173,106270.0,106260.0,0.188217]
[1734309561174,0.000173,106270.0,106260.0,0.36564986]
[1734309561378,0.000133,106270.0,106260.0,0.36564986]
[1734309561596,0.000133,106270.0,106260.0,0.41564986]
[1734309561597,0.00030135,106270.0,106260.0,0.41564986]
[1734309561800,0.00030135,106270.0,106260.0,0.49725854]
[1734309562437,0.00030135,106270.0,106260.0,0.56009542]
[1734309562642,0.00030135,106270.0,106260.0,0.47848674]
[1734309562978,0.000173,106290.0,106280.0,0.188182]
[1734309563098,0.000173,106290.0,106280.0,0.19852648]
[1734309563300,0.000173,106290.0,106280.0,0.36561486]
[1734309564749,0.000173,106290.0,106280.0,0.41561486]
[1734309564957,0.000173,106290.0,106280.0,0.54361486]
[1734309565591,0.000173,106290.0,106280.0,0.49361486]
[1734309565804,0.000173,106290.0,106280.0,0.54361486]
[1734309566024,0.000173,106290.0,106280.0,0.49361486]
[1734309566232,0.000173,106290.0,106280.0,0.54361486]
[1734309567003,0.000173,106290.0,106280.0,0.44361486]
[1734309567161,0.000173,106290.0,106280.0,0.1567439]
[1734309567362,0.000173,106290.0,106280.0,0.42102938]
[1734309567769,0.000173,106290.0,106280.0,0.37102938]
[1734309569007,0.000173,106290.0,106280.0,0.42102938]
[1734309569570,0.38452261,106330.0,106280.0,0.23284738]
[1734309569703,0.00016829,106310.0,106290.0,0.21424948]
[1734309569901,0.00016829,106310.0,106290.0,0.40240248]
[1734309570182,0.00016829,106310.0,106300.0,0.3448899]
[1734309570384,0.00016829,106310.0,106300.0,0.37232671]
[1734309570592,0.00016829,106310.0,106300.0,0.19250471]
[1734309570710,0.00016829,106310.0,106300.0,0.22390681]
[1734309571065,0.00016829,106310.0,106300.0,0.188146]
[1734309571828,0.00016829,106310.0,106300.0,0.238146]
[1734309572655,0.00016829,106310.0,106300.0,0.188146]
[1734309572856,0.00016829,106310.0,106300.0,0.19875329]
[1734309573070,0.00016829,106310.0,106300.0,0.24875329]
[1734309573279,0.00016829,106310.0,106300.0,0.25936058]
[1734309573479,0.00016829,106310.0,106300.0,0.238146]
[1734309573651,0.00016829,106310.0,106300.0,0.25936058]
[1734309573849,0.00303494,106340.0,106320.0,0.188111]
[1734309574123,0.00359579,106340.0,106320.0,0.188111]
[1734309574235,0.00359579,106340.0,106310.0,0.376242]
[1734309574439,0.19167179,106340.0,106310.0,0.564358]
[1734309574642,0.19167179,106340.0,106310.0,0.58557258]
[1734309574896,0.19167179,106340.0,106310.0,0.564358]
[1734309575238,0.19167179,106340.0,106320.0,0.18811]
[1734309575832,0.19167179,106340.0,106320.0,0.20932458]
[1734309576072,0.19167179,106340.0,106320.0,0.376209]
[1734309576073,0.01245999,106340.0,106320.0,0.376209]
[1734309576271,0.01245999,106340.0,106330.0,0.36605148]
[1734309576478,0.00073365,106340.0,106330.0,0.36605148]
[1734309577301,0.00073365,106340.0,106330.0,0.43954799]
[1734309577474,8.63e-05,106350.0,106340.0,0.05]
[1734309577649,0.00025445,106350.0,106340.0,0.06894178]
[1734309577850,0.00025445,106350.0,106340.0,0.188075]
[1734309578054,0.0001728,106360.0,106340.0,0.188066]
[1734309578216,0.1882258,106360.0,106340.0,0.00016815]
[1734309578420,0.188058,106350.0,106340.0,0.00016815]
[1734309578858,0.312158,106350.0,106340.0,0.00016815]
[1734309579292,0.312158,106350.0,106290.0,0.188153]
[1734309579293,0.188112,106320.0,106290.0,0.188153]
[1734309579514,0.188112,106320.0,106300.0,0.188143]
[1734309579714,0.188075,106340.0,106310.0,0.376255]
[1734309579900,0.12426806,106350.0,106320.0,0.1881]
[1734309580121,0.12426806,106350.0,106340.0,0.188075]
[1734309580122,0.00016806,106350.0,106340.0,0.188075]
[1734309582024,0.00016806,106350.0,106340.0,0.20372152]
[1734309582590,0.43551979,106380.0,106340.0,0.38396026]
[1734309582765,0.188023,106370.0,106350.0,0.188058]
[1734309582965,0.43552179,106380.0,106350.0,0.376116]
[1734309583167,0.188024,106370.0,106350.0,0.188058]
[1734309583443,0.24750379,106380.0,106340.0,0.00016806]
[1734309583444,0.18805,106360.0,106340.0,0.00016806]
[1734309583648,0.188058,106350.0,106340.0,0.00016806]
[1734309585654,0.3448019,106350.0,106340.0,0.00016806]
[1734309586425,0.5496458,106350.0,106340.0,0.00016806]
[1734309586626,0.4429019,106350.0,106340.0,0.00016806]
[1734309586829,0.188104,106330.0,106300.0,0.1883046]
[1734309587033,0.376211,106330.0,106300.0,0.1883046]
[1734309587235,0.376211,106330.0,106300.0,0.3764356]
[1734309587542,0.188083,106340.0,106310.0,0.188117]
[1734309587543,0.376171,106340.0,106310.0,0.188117]
[1734309587724,0.564264,106340.0,106310.0,0.188117]
[1734309587958,0.564264,106340.0,106310.0,0.376235]
[1734309588069,0.188093,106330.0,106310.0,0.376235]
[1734309588269,0.187993,106330.0,106310.0,0.376235]
[1734309588468,0.564258,106340.0,106310.0,0.564353]
[1734309588714,0.06270565,106350.0,106320.0,0.188099]
[1734309588927,0.25077365,106350.0,106320.0,0.376199]
[1734309589163,0.43884465,106350.0,106320.0,0.376199]
[1734309589369,0.188077,106340.0,106320.0,0.376199]
[1734309589500,0.188077,106340.0,106320.0,0.188099]
[1734309589699,0.188077,106340.0,106310.0,0.376242]
[1734309589910,0.00275324,106360.0,106350.0,0.188058]
[1734309590111,0.19799003,106400.0,106350.0,0.238058]
[1734309590324,0.19815818,106400.0,106370.0,0.376031]
[1734309590725,0.00763525,106390.0,106380.0,0.188005]
[1734309590981,0.00469843,106390.0,106380.0,0.188005]
[1734309591214,0.01018618,106400.0,106390.0,0.187987]
[1734309591646,0.01018618,106400.0,106390.0,0.19385904]
[1734309592469,0.01018618,106400.0,106390.0,0.24385904]
[1734309593103,0.0941314,106470.0,106430.0,0.1283]
[1734309593275,0.0941314,106470.0,106460.0,0.187863]
[1734309593537,0.09538603,106470.0,106460.0,0.187863]
[1734309593742,0.09538603,106470.0,106460.0,0.214093]
[1734309593945,0.09469204,106470.0,106460.0,0.214093]
[1734309594324,0.09469204,106470.0,106460.0,0.827093]
[1734309594536,0.05885177,106480.0,106470.0,0.05]
[1734309594787,0.05815755,106480.0,106470.0,0.2937129]
[1734309594988,0.05832566,106480.0,106460.0,0.05]
[1734309595196,0.00762794,106470.0,106450.0,0.05]
[1734309595408,0.05832566,106480.0,106470.0,0.187846]
[1734309595609,0.05832566,106480.0,106470.0,0.237846]
[1734309595988,0.05832566,106480.0,106470.0,0.287846]
[1734309596928,0.05832566,106480.0,106470.0,0.29578596]
[1734309597206,0.02079,106490.0,106480.0,0.1]
[1734309597346,0.02079,106490.0,106480.0,0.31694868]
[1734309597566,0.02079,106490.0,106480.0,0.29576702]
[1734309597766,0.02079,106490.0,106480.0,0.30506702]
[1734309597971,0.02079,106490.0,106480.0,0.53385217]
[1734309598392,0.7380862,106500.0,106490.0,0.05]
[1734309598626,0.7380862,106500.0,106480.0,0.85949517]
[1734309598627,0.7380862,106500.0,106480.0,0.0186]
[1734309598827,0.7380862,106500.0,106480.0,0.0279]
[1734309598968,1.0056932,106500.0,106490.0,0.0186]
[1734309599175,1.22517835,106500.0,106490.0,0.0186]
[1734309599376,1.27447835,106500.0,106490.0,0.0186]
[1734309599589,0.1791,106490.0,106480.0,0.0279]
[1734309599792,0.18672999,106490.0,106480.0,0.0279]
[1734309600000,0.18672999,106490.0,106400.0,0.05]
[1734309600001,0.187883,106450.0,106400.0,0.05]
[1734309600201,0.187912,106440.0,106390.0,0.1]
[1734309600402,0.187912,106440.0,106400.0,0.00056064]
[1734309600605,0.1291,106460.0,106420.0,0.05]
[1734309600818,0.29778515,106490.0,106450.0,0.05]
[1734309601018,0.187829,106480.0,106440.0,0.287885]
[1734309601222,0.00293461,106480.0,106460.0,0.475711]
[1734309601435,0.08593015,106490.0,106470.0,0.05]
[1734309601647,0.08299592,106490.0,106470.0,0.237845]
[1734309601869,0.08299592,106490.0,106470.0,0.287846]
[1734309602108,0.00469592,106490.0,106470.0,0.47584311]
[1734309602310,0.00469592,106490.0,106480.0,0.237828]
[1734309602758,0.00469592,106490.0,106480.0,0.287828]
[1734309603109,0.7368862,106500.0,106480.0,0.475643]
[1734309603802,0.7368862,106500.0,106470.0,0.42585611]
[1734309604021,0.73683881,106500.0,106470.0,0.28818431]
[1734309604275,0.92463281,106500.0,106470.0,0.00034031]
[1734309604434,8.61e-05,106490.0,106470.0,0.00034031]
[1734309605256,0.1879011,106490.0,106470.0,0.00034031]
[1734309605949,0.1212,106480.0,106470.0,0.00034031]
[1734309606096,0.309028,106480.0,106470.0,0.00034031]
[1734309608438,0.0807,106440.0,106400.0,0.425923]
[1734309608648,0.0477,106440.0,106400.0,0.425923]
[1734309608846,0.0477,106440.0,106410.0,0.05]
[1734309609086,0.0477,106440.0,106420.0,0.237934]
[1734309609270,0.0477,106440.0,106430.0,0.187916]
[1734309609507,0.0477,106440.0,106410.0,0.475874]
[1734309609694,0.0477,106440.0,106410.0,0.425874]
[1734309609901,0.04786828,106440.0,106410.0,0.425874]
[1734309610054,0.00016828,106440.0,106430.0,0.237916]
[1734309610272,0.00016828,106440.0,106430.0,0.187916]
[1734309610478,0.00016828,106440.0,106420.0,0.425843]
[1734309610952,0.00016828,106440.0,106430.0,0.187916]
[1734309612388,0.00016828,106440.0,106430.0,0.237916]
[1734309612823,0.00016828,106440.0,106430.0,0.05]
[1734309613081,0.00016828,106440.0,106430.0,0.237916]
[1734309613493,0.00016828,106440.0,106430.0,0.287916]
[1734309613694,8.61e-05,106490.0,106480.0,0.15880456]
[1734309613897,8.61e-05,106490.0,106470.0,0.187835]
[1734309613898,0.00025457,106490.0,106470.0,0.187835]
[1734309614027,0.40756272,106490.0,106460.0,0.187852]
[1734309614229,0.187829,106480.0,106450.0,0.425739]
[1734309614430,0.59538572,106490.0,106450.0,0.187869]
[1734309614638,0.187829,106480.0,106450.0,0.375736]
[1734309615107,0.0775,106460.0,106430.0,0.187906]
[1734309615317,0.265376,106460.0,106430.0,0.187906]
[1734309615529,0.453252,106460.0,106430.0,0.0001722]
[1734309615742,0.187881,106450.0,106430.0,0.0001722]
[1734309616071,0.375773,106450.0,106430.0,0.0001722]
[1734309616276,0.187899,106440.0,106430.0,0.0001722]
[1734309616479,0.236199,106440.0,106430.0,0.0001722]
[1734309617093,0.187946,106420.0,106380.0,0.188004]
[1734309617271,0.235853,106410.0,106380.0,0.188004]
[1734309617473,0.235853,106410.0,106380.0,0.376008]
[1734309617605,0.423818,106410.0,106380.0,0.20324749]
[1734309617813,0.423818,106410.0,106380.0,0.20324649]
[1734309617814,0.0752,106400.0,106380.0,0.20324649]
[1734309618026,0.26317,106400.0,106380.0,0.01524349]
[1734309618220,0.45114,106400.0,106380.0,0.01524349]
[1734309618447,0.45114,106400.0,106380.0,0.00056064]
[1734309618654,0.187987,106390.0,106380.0,0.00056064]
[1734309619286,0.234687,106390.0,106380.0,0.00056064]
[1734309620559,0.376014,106380.0,106360.0,0.0001722]
[1734309620742,0.2847,106390.0,106360.0,0.00034048]
[1734309620954,0.188018,106380.0,106360.0,0.00034048]
[1734309621141,0.376036,106380.0,106360.0,0.00034048]
[1734309621443,0.188022,106370.0,106360.0,0.00034048]
[1734309621654,0.319922,106370.0,106360.0,0.00034048]
[1734309622697,0.188048,106360.0,106330.0,0.188081]
[1734309622898,0.18806,106350.0,106330.0,0.00056085]
[1734309623102,0.37612,106350.0,106330.0,0.00056085]
[1734309623308,0.376131,106350.0,106330.0,0.00056085]
[1734309623517,0.237075,106340.0,106330.0,0.00056085]
[1734309623923,0.318175,106340.0,106330.0,0.00056085]
[1734309624138,0.0811,106360.0,106340.0,0.188072]
[1734309624348,0.0471,106370.0,106350.0,0.376103]
[1734309624562,0.0471,106370.0,106360.0,0.18804]
[1734309625295,0.0471,106370.0,106350.0,0.376102]
[1734309625738,0.0471,106370.0,106360.0,0.18804]
[1734309625945,0.20268809,106410.0,106360.0,0.18804]
[1734309626152,0.20268809,106410.0,106380.0,0.187994]
[1734309626153,0.1259,106400.0,106380.0,0.187994]
[1734309626356,0.31387,106400.0,106380.0,0.187994]
[1734309627302,0.31387,106400.0,106380.0,0.37616715]
[1734309627303,0.1259,106400.0,106380.0,0.37616715]
[1734309628134,0.501853,106400.0,106380.0,0.00016815]
[1734309628389,0.31387,106400.0,106380.0,0.00016815]
[1734309628600,0.501853,106400.0,106380.0,0.00016815]
[1734309628767,0.44967068,106400.0,106380.0,0.00016815]
[1734309629129,0.07371768,106400.0,106380.0,0.37617515]
[1734309629332,0.0709,106400.0,106380.0,0.37617515]
[1734309629530,0.0709,106400.0,106380.0,0.37616315]
[1734309630008,0.0709,106400.0,106390.0,0.187987]
[1734309630537,0.0709,106400.0,106380.0,0.18816015]
[1734309630951,0.187987,106390.0,106380.0,0.00016815]
[1734309631603,0.0709,106400.0,106380.0,0.18815515]
[1734309631954,0.0709,106400.0,106390.0,0.187987]
[1734309632725,0.0709,106400.0,106380.0,0.00016815]
[1734309632881,0.258881,106400.0,106380.0,0.00016815]
[1734309633084,0.446862,106400.0,106380.0,0.00016815]
[1734309633852,0.182987,106390.0,106380.0,0.00016815]
[1734309633991,0.01473409,106410.0,106400.0,0.187969]
[1734309634189,0.05073605,106420.0,106400.0,0.187969]
[1734309634390,0.00293605,106420.0,106410.0,0.187952]
[1734309634601,8.62e-05,106430.0,106410.0,0.375904]
[1734309634802,8.62e-05,106430.0,106410.0,0.563856]
[1734309635024,8.62e-05,106430.0,106420.0,0.187934]
[1734309635802,8.62e-05,106430.0,106420.0,0.287934]
[1734309636021,0.0478,106480.0,106470.0,0.187846]
[1734309636423,0.0483619,106480.0,106470.0,0.187846]
[1734309636627,0.2361909,106480.0,106450.0,0.187869]
[1734309636892,0.0029341,106470.0,106450.0,0.375737]
[1734309637091,0.0029341,106470.0,106460.0,0.187863]
[1734309637304,0.0005619,106480.0,106460.0,0.187863]
[1734309637551,0.0005619,106480.0,106470.0,0.187846]
[1734309637980,0.0005619,106480.0,106470.0,0.01193297]
[1734309638185,0.0005619,106480.0,106460.0,0.375713]
[1734309638567,0.05073383,106470.0,106450.0,0.187876]
[1734309638789,0.05073383,106470.0,106450.0,0.375746]
[1734309638790,0.0478,106470.0,106450.0,0.375746]
[1734309638994,0.0478,106470.0,106450.0,0.375739]
[1734309639194,0.0478,106470.0,106450.0,0.375736]
[1734309639399,0.0228,106470.0,106450.0,0.375736]
[1734309639608,0.210647,106470.0,106440.0,0.375773]
[1734309639829,0.187883,106450.0,106420.0,0.375866]
[1734309640048,0.187883,106450.0,106420.0,0.187932]
[1734309640049,0.187899,106440.0,106420.0,0.187932]
[1734309640455,0.45361,106440.0,106410.0,0.375881]
[1734309640630,0.187917,106430.0,106410.0,0.375881]
[1734309640833,0.187917,106430.0,106400.0,0.187958]
[1734309640834,0.375834,106430.0,106400.0,0.187958]
[1734309641040,0.187917,106430.0,106400.0,0.187958]
[1734309641242,0.187917,106430.0,106410.0,0.187951]
[1734309641448,0.375846,106430.0,106400.0,0.375916]
[1734309641602,0.375846,106430.0,106400.0,0.187958]
[1734309641807,0.187934,106420.0,106400.0,0.187958]
[1734309642011,0.187917,106430.0,106410.0,0.18795]
[1734309642218,0.187917,106430.0,106420.0,0.187934]
[1734309642219,0.00293571,106430.0,106420.0,0.187934]
[1734309642422,0.0778,106440.0,106430.0,0.187916]
[1734309642423,0.08073571,106440.0,106430.0,0.187916]
[1734309642628,0.00016848,106440.0,106430.0,0.187916]
[1734309644690,0.237854,106470.0,106430.0,0.375832]
[1734309644894,0.00056179,106450.0,106430.0,0.375832]
[1734309645097,0.18844279,106450.0,106420.0,0.375853]
[1734309645274,0.37633479,106450.0,106410.0,0.375879]
[1734309645717,0.187899,106440.0,106410.0,0.413429]
[1734309645913,0.375809,106440.0,106410.0,0.225489]
[1734309646121,0.187899,106440.0,106410.0,0.187939]
[1734309646581,0.37581,106440.0,106410.0,0.187939]
[1734309646782,0.187917,106430.0,106400.0,0.413463]
[1734309646985,0.375834,106430.0,106400.0,0.375911]
[1734309647187,0.375834,106430.0,106400.0,0.187953]
[1734309647619,0.425734,106430.0,106400.0,0.187953]
[1734309647822,0.187936,106420.0,106390.0,0.4283691]
[1734309648047,0.187936,106420.0,106390.0,0.3908131]
[1734309648273,0.187936,106420.0,106390.0,0.5787871]
[1734309648478,0.187936,106420.0,106400.0,0.187969]
[1734309648673,0.187936,106420.0,106390.0,0.3908011]
[1734309648794,0.375884,106420.0,106390.0,0.0148511]
[1734309648996,0.187953,106410.0,106390.0,0.0148511]
[1734309649198,0.187953,106410.0,106390.0,0.2028381]
[1734309649660,0.375906,106410.0,106390.0,0.0001724]
[1734309650067,0.563874,106410.0,106390.0,0.0001724]
[1734309650268,0.375906,106410.0,106390.0,0.00034088]
[1734309650471,0.187969,106400.0,106390.0,0.00034088]
[1734309650688,0.187953,106410.0,106390.0,0.00034088]
[1734309651092,0.375918,106410.0,106390.0,0.00034088]